[Event "Titled Tuesday Blitz August 3 2021"]
[White "Skatchkov, Pavel"]
[Black "Makhnev, Denis"]
[WhiteFideId "4121848"]
[BlackFideId "13707647"]
[WhiteElo "2476"]
[BlackElo "2537"]
[Result "0-1"]
[Round "09"]
[TimeControl "180+1"]
[Date "2021.08.03"]
[WhiteClock "0:00:02"]
[BlackClock "0:00:09"]

1. d4 {[%clk 0:03:00]}  d5 {[%clk 0:02:59]} 2. c4 {[%clk 0:03:00]}  dxc4 {[%clk 0:03:00]} 3. e4 {[%clk 0:03:00]}  Nc6 {[%clk 0:03:00]} 4. Nf3 {[%clk 0:02:55]}  Bg4 {[%clk 0:03:00]} 5. Bxc4 {[%clk 0:02:51]}  Bxf3 {[%clk 0:02:59]} 6. Qxf3 {[%clk 0:02:42]}  e6 {[%clk 0:02:59]} 7. d5 {[%clk 0:02:37]}  Ne5 {[%clk 0:02:57]} 8. Bb5+ {[%clk 0:02:14]}  c6 {[%clk 0:02:57]} 9. Qg3 {[%clk 0:02:15]}  Qa5+ {[%clk 0:02:36]} 10. Nc3 {[%clk 0:02:13]}  cxb5 {[%clk 0:02:20]} 11. Qxe5 {[%clk 0:02:13]}  b4 {[%clk 0:02:21]} 12. Ne2 {[%clk 0:02:10]}  Nf6 {[%clk 0:02:21]} 13. O-O {[%clk 0:02:05]}  Be7 {[%clk 0:02:20]} 14. Bd2 {[%clk 0:01:30]}  O-O {[%clk 0:01:59]} 15. a3 {[%clk 0:01:29]}  Nd7 {[%clk 0:01:56]} 16. Qg3 {[%clk 0:01:24]}  exd5 {[%clk 0:01:54]} 17. axb4 {[%clk 0:01:23]}  Qb5 {[%clk 0:01:53]} 18. Nc3 {[%clk 0:01:23]}  Qc6 {[%clk 0:01:48]} 19. Nxd5 {[%clk 0:01:22]}  Bd6 {[%clk 0:01:49]} 20. b5 {[%clk 0:01:17]}  Qxd5 {[%clk 0:01:45]} 21. exd5 {[%clk 0:01:17]}  Bxg3 {[%clk 0:01:45]} 22. hxg3 {[%clk 0:01:17]}  Nb6 {[%clk 0:01:42]} 23. d6 {[%clk 0:01:15]}  Nd5 {[%clk 0:01:28]} 24. Rfd1 {[%clk 0:01:05]}  Rfd8 {[%clk 0:01:25]} 25. Ra3 {[%clk 0:01:00]}  Rxd6 {[%clk 0:01:24]} 26. Bf4 {[%clk 0:01:00]}  Rd7 {[%clk 0:01:22]} 27. Rad3 {[%clk 0:01:00]}  Rad8 {[%clk 0:01:22]} 28. Be3 {[%clk 0:00:50]}  b6 {[%clk 0:01:15]} 29. Bg5 {[%clk 0:00:41]}  f6 {[%clk 0:01:15]} 30. Bf4 {[%clk 0:00:41]}  Kf7 {[%clk 0:01:11]} 31. g4 {[%clk 0:00:38]}  Ke8 {[%clk 0:01:05]} 32. Re1+ {[%clk 0:00:36]}  Re7 {[%clk 0:01:05]} 33. Rxe7+ {[%clk 0:00:35]}  Kxe7 {[%clk 0:01:06]} 34. Bg3 {[%clk 0:00:29]}  Rd7 {[%clk 0:01:03]} 35. Rd4 {[%clk 0:00:25]}  Nc7 {[%clk 0:00:49]} 36. Re4+ {[%clk 0:00:25]}  Ne6 {[%clk 0:00:50]} 37. Rc4 {[%clk 0:00:15]}  Nd4 {[%clk 0:00:47]} 38. Rb4 {[%clk 0:00:10]}  Rd5 {[%clk 0:00:47]} 39. Ra4 {[%clk 0:00:07]}  Nxb5 {[%clk 0:00:47]} 40. f3 {[%clk 0:00:07]}  Kd7 {[%clk 0:00:43]} 41. Bb8 {[%clk 0:00:04]}  Kc8 {[%clk 0:00:42]} 42. Bxa7 {[%clk 0:00:04]}  Kb7 {[%clk 0:00:43]} 43. Re4 {[%clk 0:00:01]}  Rd7 {[%clk 0:00:39]} 44. Bxb6 {[%clk 0:00:01]}  Kxb6 {[%clk 0:00:39]} 45. f4 {[%clk 0:00:02]}  Kc5 {[%clk 0:00:38]} 46. g5 {[%clk 0:00:02]}  fxg5 {[%clk 0:00:34]} 47. Re5+ {[%clk 0:00:02]}  Rd5 {[%clk 0:00:34]} 48. Re7 {[%clk 0:00:03]}  gxf4 {[%clk 0:00:34]} 49. Rxg7 {[%clk 0:00:03]}  h5 {[%clk 0:00:34]} 50. Rf7 {[%clk 0:00:03]}  Nd4 {[%clk 0:00:35]} 51. Kh2 {[%clk 0:00:03]}  Ne6 {[%clk 0:00:35]} 52. Rf6 {[%clk 0:00:03]}  Re5 {[%clk 0:00:35]} 53. g3 {[%clk 0:00:03]}  fxg3+ {[%clk 0:00:24]} 54. Kxg3 {[%clk 0:00:04]}  Ng7 {[%clk 0:00:25]} 55. Kh4 {[%clk 0:00:04]}  Re7 {[%clk 0:00:20]} 56. Rg6 {[%clk 0:00:04]}  Kd4 {[%clk 0:00:18]} 57. Kg5 {[%clk 0:00:04]}  Ke5 {[%clk 0:00:11]} 58. b4 {[%clk 0:00:03]}  Kd5 {[%clk 0:00:08]} 59. b5 {[%clk 0:00:04]}  Kc5 {[%clk 0:00:07]} 60. b6 {[%clk 0:00:04]}  Rb7 {[%clk 0:00:08]} 61. Kh4 {[%clk 0:00:03]}  Kb5 {[%clk 0:00:08]} 62. Kg5 {[%clk 0:00:03]}  Ka6 {[%clk 0:00:08]} 63. Kh4 {[%clk 0:00:04]}  Rd7 {[%clk 0:00:09]} 64. Kg5 {[%clk 0:00:04]}  Rd5+ {[%clk 0:00:08]} 65. Kf6 {[%clk 0:00:03]}  Rd6+ {[%clk 0:00:07]} 66. Kg5 {[%clk 0:00:01]}  Rxg6+ {[%clk 0:00:08]} 67. Kh4 {[%clk 0:00:02]}  Rg4+ {[%clk 0:00:08]} 68. Kh3 {[%clk 0:00:02]}  Nf5 {[%clk 0:00:09]} 0-1


[Site "https://www.chess.com"]

[Event "Titled Tuesday Blitz August 3 2021"]
[White "Ter-Sahakyan, Samvel"]
[Black "Solon, Nathan"]
[WhiteFideId "13302531"]
[BlackFideId "2017229"]
[WhiteElo "2551"]
[BlackElo "2659"]
[Result "1-0"]
[Round "09"]
[TimeControl "180+1"]
[Date "2021.08.03"]
[WhiteClock "0:00:33"]
[BlackClock "0:00:01"]

1. Nf3 {[%clk 0:02:59]}  d5 {[%clk 0:02:59]} 2. e3 {[%clk 0:02:57]}  Nf6 {[%clk 0:02:58]} 3. c4 {[%clk 0:02:57]}  e6 {[%clk 0:02:58]} 4. Nc3 {[%clk 0:02:57]}  c6 {[%clk 0:02:53]} 5. b3 {[%clk 0:02:54]}  Bd6 {[%clk 0:02:53]} 6. Bb2 {[%clk 0:02:55]}  Qe7 {[%clk 0:02:46]} 7. d4 {[%clk 0:02:54]}  Nbd7 {[%clk 0:02:38]} 8. Be2 {[%clk 0:02:48]}  O-O {[%clk 0:02:38]} 9. O-O {[%clk 0:02:47]}  b6 {[%clk 0:02:30]} 10. Qc2 {[%clk 0:02:47]}  Bb7 {[%clk 0:02:30]} 11. Rad1 {[%clk 0:02:47]}  Rad8 {[%clk 0:02:30]} 12. Rfe1 {[%clk 0:02:47]}  Rfe8 {[%clk 0:02:27]} 13. h3 {[%clk 0:02:38]}  e5 {[%clk 0:02:22]} 14. cxd5 {[%clk 0:02:36]}  cxd5 {[%clk 0:01:56]} 15. Nb5 {[%clk 0:02:36]}  Rc8 {[%clk 0:01:48]} 16. Qb1 {[%clk 0:02:31]}  Bb4 {[%clk 0:01:37]} 17. dxe5 {[%clk 0:02:12]}  Bxe1 {[%clk 0:01:37]} 18. Rxe1 {[%clk 0:02:01]}  Ne4 {[%clk 0:01:35]} 19. Nxa7 {[%clk 0:01:59]}  Ra8 {[%clk 0:01:33]} 20. Nb5 {[%clk 0:01:59]}  Rec8 {[%clk 0:01:27]} 21. Rd1 {[%clk 0:01:51]}  Nf8 {[%clk 0:01:20]} 22. Nfd4 {[%clk 0:01:28]}  Qh4 {[%clk 0:01:17]} 23. Rf1 {[%clk 0:01:25]}  Ne6 {[%clk 0:01:15]} 24. Nf5 {[%clk 0:01:20]}  Qg5 {[%clk 0:01:12]} 25. Nbd6 {[%clk 0:01:17]}  Rc7 {[%clk 0:01:01]} 26. Nxe4 {[%clk 0:01:01]}  dxe4 {[%clk 0:01:00]} 27. Nd6 {[%clk 0:01:02]}  Nc5 {[%clk 0:00:47]} 28. Bc4 {[%clk 0:00:58]}  Ba6 {[%clk 0:00:41]} 29. Bxa6 {[%clk 0:00:54]}  Rxa6 {[%clk 0:00:42]} 30. Rc1 {[%clk 0:00:53]}  Rd7 {[%clk 0:00:24]} 31. b4 {[%clk 0:00:39]}  Nd3 {[%clk 0:00:24]} 32. Bd4 {[%clk 0:00:37]}  Ra8 {[%clk 0:00:17]} 33. Nxe4 {[%clk 0:00:34]}  Qf5 {[%clk 0:00:01]} 34. Qxd3 {[%clk 0:00:33]} 1-0


[Site "https://www.chess.com"]

[Event "Titled Tuesday Blitz August 3 2021"]
[White "Todev, Simeon"]
[Black "Grinblat, Dmitry"]
[WhiteFideId "2925133"]
[BlackFideId "4163257"]
[WhiteElo "1818"]
[BlackElo "2477"]
[Result "1-0"]
[Round "09"]
[TimeControl "180+1"]
[Date "2021.08.03"]
[WhiteClock "0:00:04"]
[BlackClock "0:00:02"]

1. e4 {[%clk 0:03:00]}  c5 {[%clk 0:02:59]} 2. Nf3 {[%clk 0:02:54]}  d6 {[%clk 0:02:58]} 3. c3 {[%clk 0:02:46]}  Nf6 {[%clk 0:02:58]} 4. Bd3 {[%clk 0:02:45]}  Nbd7 {[%clk 0:02:56]} 5. Bc2 {[%clk 0:02:45]}  e5 {[%clk 0:02:56]} 6. O-O {[%clk 0:02:46]}  g6 {[%clk 0:02:56]} 7. d4 {[%clk 0:02:46]}  Bg7 {[%clk 0:02:57]} 8. Bg5 {[%clk 0:02:45]}  h6 {[%clk 0:02:51]} 9. dxe5 {[%clk 0:02:43]}  dxe5 {[%clk 0:02:50]} 10. Bxf6 {[%clk 0:02:42]}  Bxf6 {[%clk 0:02:49]} 11. Na3 {[%clk 0:02:37]}  O-O {[%clk 0:02:47]} 12. Nc4 {[%clk 0:02:35]}  Qe7 {[%clk 0:02:39]} 13. Qd6 {[%clk 0:02:33]}  Re8 {[%clk 0:02:33]} 14. Rfd1 {[%clk 0:02:27]}  Nf8 {[%clk 0:02:26]} 15. Ba4 {[%clk 0:02:14]}  Qxd6 {[%clk 0:02:17]} 16. Nxd6 {[%clk 0:02:05]}  Re7 {[%clk 0:02:15]} 17. Ne8 {[%clk 0:01:51]}  Bh8 {[%clk 0:02:05]} 18. Rd8 {[%clk 0:01:45]}  Ne6 {[%clk 0:02:05]} 19. Nf6+ {[%clk 0:01:41]}  Kg7 {[%clk 0:02:04]} 20. Rg8+ {[%clk 0:01:35]}  Kxf6 {[%clk 0:02:04]} 21. Rxh8 {[%clk 0:01:35]}  Kg7 {[%clk 0:02:02]} 22. Re8 {[%clk 0:01:36]}  Rxe8 {[%clk 0:01:55]} 23. Bxe8 {[%clk 0:01:36]}  Kf8 {[%clk 0:01:49]} 24. Bb5 {[%clk 0:01:31]}  Nc7 {[%clk 0:01:43]} 25. Be2 {[%clk 0:01:13]}  f6 {[%clk 0:01:43]} 26. Rd1 {[%clk 0:01:12]}  Be6 {[%clk 0:01:35]} 27. a3 {[%clk 0:01:02]}  Ke7 {[%clk 0:01:34]} 28. Kf1 {[%clk 0:00:53]}  Ne8 {[%clk 0:01:19]} 29. Nd2 {[%clk 0:00:20]}  Nd6 {[%clk 0:01:17]} 30. f3 {[%clk 0:00:20]}  b5 {[%clk 0:01:10]} 31. Kf2 {[%clk 0:00:18]}  c4 {[%clk 0:00:57]} 32. Nf1 {[%clk 0:00:16]}  Nb7 {[%clk 0:00:57]} 33. Ne3 {[%clk 0:00:16]}  Nc5 {[%clk 0:00:56]} 34. Nd5+ {[%clk 0:00:16]}  Bxd5 {[%clk 0:00:54]} 35. Rxd5 {[%clk 0:00:17]}  Rc8 {[%clk 0:00:53]} 36. Ke3 {[%clk 0:00:12]}  a6 {[%clk 0:00:53]} 37. Bd1 {[%clk 0:00:12]}  Nd3 {[%clk 0:00:49]} 38. b3 {[%clk 0:00:08]}  Nb2 {[%clk 0:00:44]} 39. bxc4 {[%clk 0:00:07]}  Nxc4+ {[%clk 0:00:43]} 40. Kd3 {[%clk 0:00:07]}  Nxa3 {[%clk 0:00:42]} 41. Bb3 {[%clk 0:00:07]}  Rd8 {[%clk 0:00:28]} 42. c4 {[%clk 0:00:07]}  bxc4+ {[%clk 0:00:25]} 43. Bxc4 {[%clk 0:00:06]}  Nxc4 {[%clk 0:00:25]} 44. Kxc4 {[%clk 0:00:07]}  Rxd5 {[%clk 0:00:24]} 45. Kxd5 {[%clk 0:00:07]}  Kd7 {[%clk 0:00:24]} 46. Kc5 {[%clk 0:00:08]}  Kc7 {[%clk 0:00:22]} 47. h4 {[%clk 0:00:07]}  g5 {[%clk 0:00:18]} 48. h5 {[%clk 0:00:07]}  Kb7 {[%clk 0:00:16]} 49. g4 {[%clk 0:00:03]}  Kc7 {[%clk 0:00:16]} 50. Kd5 {[%clk 0:00:03]}  Kb6 {[%clk 0:00:16]} 51. Ke6 {[%clk 0:00:04]}  a5 {[%clk 0:00:16]} 52. Kxf6 {[%clk 0:00:04]}  a4 {[%clk 0:00:17]} 53. Kg6 {[%clk 0:00:04]}  a3 {[%clk 0:00:18]} 54. Kxh6 {[%clk 0:00:05]}  a2 {[%clk 0:00:19]} 55. Kg7 {[%clk 0:00:03]}  a1=Q {[%clk 0:00:20]} 56. h6 {[%clk 0:00:04]}  Qa7+ {[%clk 0:00:18]} 57. Kg8 {[%clk 0:00:03]}  Qb8+ {[%clk 0:00:18]} 58. Kg7 {[%clk 0:00:04]}  Qc7+ {[%clk 0:00:19]} 59. Kg8 {[%clk 0:00:04]}  Qd8+ {[%clk 0:00:19]} 60. Kg7 {[%clk 0:00:05]}  Qe7+ {[%clk 0:00:20]} 61. Kg8 {[%clk 0:00:06]}  Qe6+ {[%clk 0:00:16]} 62. Kg7 {[%clk 0:00:05]}  Qd7+ {[%clk 0:00:15]} 63. Kg8 {[%clk 0:00:04]}  Qe6+ {[%clk 0:00:02]} 64. Kg7 {[%clk 0:00:04]} 1-0


[Site "https://www.chess.com"]

[Event "Titled Tuesday Blitz August 3 2021"]
[White "Tomiello, Mateus Costamilan"]
[Black "Molina, Roberto Junio Brito"]
[WhiteFideId "22701958"]
[BlackFideId "2109450"]
[WhiteElo "1995"]
[BlackElo "2402"]
[Result "0-1"]
[Round "09"]
[TimeControl "180+1"]
[Date "2021.08.03"]
[WhiteClock "0:00:03"]
[BlackClock "0:00:25"]

1. e4 {[%clk 0:03:00]}  c6 {[%clk 0:02:59]} 2. d4 {[%clk 0:03:00]}  d5 {[%clk 0:02:59]} 3. Nc3 {[%clk 0:03:01]}  dxe4 {[%clk 0:02:59]} 4. Nxe4 {[%clk 0:03:01]}  Nd7 {[%clk 0:03:00]} 5. Ng5 {[%clk 0:03:00]}  Ngf6 {[%clk 0:03:00]} 6. Bd3 {[%clk 0:03:00]}  e6 {[%clk 0:03:00]} 7. Qe2 {[%clk 0:02:56]}  Bd6 {[%clk 0:02:59]} 8. N1f3 {[%clk 0:02:56]}  h6 {[%clk 0:02:58]} 9. Ne4 {[%clk 0:02:55]}  Nxe4 {[%clk 0:02:55]} 10. Qxe4 {[%clk 0:02:53]}  Qc7 {[%clk 0:02:55]} 11. Bd2 {[%clk 0:02:44]}  b6 {[%clk 0:02:52]} 12. O-O-O {[%clk 0:02:21]}  Bb7 {[%clk 0:02:52]} 13. Qg4 {[%clk 0:02:13]}  g5 {[%clk 0:02:48]} 14. d5 {[%clk 0:01:10]}  cxd5 {[%clk 0:02:41]} 15. Nd4 {[%clk 0:00:56]}  a6 {[%clk 0:02:01]} 16. Nxe6 {[%clk 0:00:42]}  fxe6 {[%clk 0:02:02]} 17. Qxe6+ {[%clk 0:00:41]}  Kd8 {[%clk 0:02:02]} 18. Rhe1 {[%clk 0:00:31]}  Kc8 {[%clk 0:01:39]} 19. Bf5 {[%clk 0:00:21]}  Bc6 {[%clk 0:01:39]} 20. Bc3 {[%clk 0:00:16]}  Rd8 {[%clk 0:01:07]} 21. Bf6 {[%clk 0:00:16]}  Kb7 {[%clk 0:00:57]} 22. Bxd8 {[%clk 0:00:15]}  Rxd8 {[%clk 0:00:57]} 23. Qxh6 {[%clk 0:00:13]}  Nc5 {[%clk 0:00:51]} 24. Kb1 {[%clk 0:00:11]}  Rg8 {[%clk 0:00:39]} 25. h4 {[%clk 0:00:07]}  gxh4 {[%clk 0:00:38]} 26. Bh3 {[%clk 0:00:05]}  a5 {[%clk 0:00:27]} 27. Qxh4 {[%clk 0:00:05]}  Ne4 {[%clk 0:00:26]} 28. Qg4 {[%clk 0:00:02]}  Rxg4 {[%clk 0:00:25]} 29. Bxg4 {[%clk 0:00:03]}  Nxf2 {[%clk 0:00:25]} 0-1


[Site "https://www.chess.com"]

[Event "Titled Tuesday Blitz August 3 2021"]
[White "Trakru, Rohun"]
[Black "Wilson, Elvin"]
[WhiteFideId "2097613"]
[BlackFideId "2014874"]
[WhiteElo "1746"]
[BlackElo "2318"]
[Result "1-0"]
[Round "09"]
[TimeControl "180+1"]
[Date "2021.08.03"]
[WhiteClock "0:00:51"]
[BlackClock "0:00:02"]

1. d4 {[%clk 0:03:00]}  Nf6 {[%clk 0:02:54]} 2. Bg5 {[%clk 0:02:52]}  e6 {[%clk 0:02:54]} 3. e4 {[%clk 0:02:51]}  h6 {[%clk 0:02:53]} 4. Bxf6 {[%clk 0:02:51]}  Qxf6 {[%clk 0:02:53]} 5. c3 {[%clk 0:02:52]}  d6 {[%clk 0:02:52]} 6. Bc4 {[%clk 0:02:49]}  g6 {[%clk 0:02:51]} 7. Ne2 {[%clk 0:02:48]}  Bg7 {[%clk 0:02:52]} 8. O-O {[%clk 0:02:48]}  Qd8 {[%clk 0:02:12]} 9. Bd3 {[%clk 0:02:23]}  e5 {[%clk 0:02:08]} 10. f4 {[%clk 0:02:22]}  O-O {[%clk 0:02:08]} 11. Nd2 {[%clk 0:02:20]}  Nd7 {[%clk 0:02:01]} 12. Nf3 {[%clk 0:02:18]}  Qe7 {[%clk 0:02:01]} 13. Qb3 {[%clk 0:02:17]}  Kh7 {[%clk 0:01:57]} 14. Rad1 {[%clk 0:01:56]}  a6 {[%clk 0:01:43]} 15. a4 {[%clk 0:01:51]}  a5 {[%clk 0:01:34]} 16. Kh1 {[%clk 0:01:47]}  c6 {[%clk 0:01:05]} 17. f5 {[%clk 0:01:35]}  Nf6 {[%clk 0:01:02]} 18. fxg6+ {[%clk 0:01:34]}  fxg6 {[%clk 0:01:02]} 19. dxe5 {[%clk 0:01:33]}  dxe5 {[%clk 0:01:02]} 20. Ng3 {[%clk 0:01:30]}  Be6 {[%clk 0:00:58]} 21. Bc4 {[%clk 0:01:30]}  Bg4 {[%clk 0:00:49]} 22. h3 {[%clk 0:01:25]}  Nh5 {[%clk 0:00:49]} 23. Nxh5 {[%clk 0:01:18]}  Bxh5 {[%clk 0:00:50]} 24. g4 {[%clk 0:01:17]}  Rf4 {[%clk 0:00:31]} 25. gxh5 {[%clk 0:01:11]}  gxh5 {[%clk 0:00:24]} 26. Be6 {[%clk 0:01:08]}  Raf8 {[%clk 0:00:21]} 27. Bf5+ {[%clk 0:01:08]}  Kh8 {[%clk 0:00:19]} 28. Nh2 {[%clk 0:01:04]}  Qh4 {[%clk 0:00:17]} 29. Rxf4 {[%clk 0:01:02]}  exf4 {[%clk 0:00:17]} 30. Qc2 {[%clk 0:00:59]}  f3 {[%clk 0:00:15]} 31. Nxf3 {[%clk 0:00:58]}  Qf4 {[%clk 0:00:15]} 32. Qg2 {[%clk 0:00:57]}  Bf6 {[%clk 0:00:11]} 33. Rg1 {[%clk 0:00:56]}  b6 {[%clk 0:00:04]} 34. Nd4 {[%clk 0:00:55]}  Be5 {[%clk 0:00:02]} 35. Ne6 {[%clk 0:00:51]} 1-0


[Site "https://www.chess.com"]

[Event "Titled Tuesday Blitz August 3 2021"]
[White "Ulko, Jaroslav"]
[Black "Tsaruk, Maksim"]
[WhiteFideId "4116658"]
[BlackFideId "13511173"]
[WhiteElo "2602"]
[BlackElo "2779"]
[Result "1-0"]
[Round "09"]
[TimeControl "180+1"]
[Date "2021.08.03"]
[WhiteClock "0:00:47"]
[BlackClock "0:00:01"]

1. d4 {[%clk 0:03:00]}  Nf6 {[%clk 0:02:58]} 2. Nf3 {[%clk 0:03:00]}  d5 {[%clk 0:02:57]} 3. c4 {[%clk 0:03:00]}  e6 {[%clk 0:02:57]} 4. Nc3 {[%clk 0:03:01]}  c5 {[%clk 0:02:57]} 5. cxd5 {[%clk 0:03:01]}  Nxd5 {[%clk 0:02:58]} 6. g3 {[%clk 0:03:00]}  Nxc3 {[%clk 0:02:54]} 7. bxc3 {[%clk 0:03:00]}  cxd4 {[%clk 0:02:55]} 8. cxd4 {[%clk 0:02:59]}  Bb4+ {[%clk 0:02:55]} 9. Bd2 {[%clk 0:02:59]}  Bxd2+ {[%clk 0:02:56]} 10. Qxd2 {[%clk 0:02:59]}  b6 {[%clk 0:02:57]} 11. Bg2 {[%clk 0:02:58]}  Bb7 {[%clk 0:02:58]} 12. O-O {[%clk 0:02:57]}  O-O {[%clk 0:02:58]} 13. Rfc1 {[%clk 0:02:49]}  Nd7 {[%clk 0:02:56]} 14. a4 {[%clk 0:02:48]}  Qb8 {[%clk 0:02:53]} 15. a5 {[%clk 0:02:47]}  Rc8 {[%clk 0:02:54]} 16. Qb4 {[%clk 0:02:27]}  Rxc1+ {[%clk 0:02:49]} 17. Rxc1 {[%clk 0:02:28]}  Qd8 {[%clk 0:02:42]} 18. axb6 {[%clk 0:02:17]}  Qxb6 {[%clk 0:02:29]} 19. Qe7 {[%clk 0:02:11]}  Qd8 {[%clk 0:02:05]} 20. Qxd8+ {[%clk 0:02:07]}  Rxd8 {[%clk 0:02:06]} 21. Rc7 {[%clk 0:02:07]}  Bxf3 {[%clk 0:01:42]} 22. Bxf3 {[%clk 0:02:07]}  a5 {[%clk 0:01:17]} 23. Ra7 {[%clk 0:02:07]}  Nb6 {[%clk 0:01:14]} 24. e3 {[%clk 0:01:58]}  a4 {[%clk 0:01:13]} 25. Ra6 {[%clk 0:01:54]}  Rd6 {[%clk 0:00:56]} 26. Bd1 {[%clk 0:01:52]}  e5 {[%clk 0:00:56]} 27. Bxa4 {[%clk 0:01:46]}  exd4 {[%clk 0:00:56]} 28. exd4 {[%clk 0:01:47]}  Kf8 {[%clk 0:00:40]} 29. Bb3 {[%clk 0:01:45]}  Ke7 {[%clk 0:00:41]} 30. Kf1 {[%clk 0:01:30]}  Nc8 {[%clk 0:00:15]} 31. Ra8 {[%clk 0:01:24]}  Nb6 {[%clk 0:00:09]} 32. Ra6 {[%clk 0:01:22]}  Nc8 {[%clk 0:00:09]} 33. Ra8 {[%clk 0:01:15]}  Nb6 {[%clk 0:00:09]} 34. Rb8 {[%clk 0:01:16]}  Nd7 {[%clk 0:00:07]} 35. Rb4 {[%clk 0:01:15]}  f5 {[%clk 0:00:05]} 36. Ke2 {[%clk 0:01:13]}  Kf6 {[%clk 0:00:06]} 37. Ke3 {[%clk 0:01:08]}  g5 {[%clk 0:00:05]} 38. Rb5 {[%clk 0:01:06]}  h6 {[%clk 0:00:04]} 39. Bc2 {[%clk 0:01:05]}  Re6+ {[%clk 0:00:02]} 40. Kf3 {[%clk 0:01:02]}  f4 {[%clk 0:00:02]} 41. gxf4 {[%clk 0:01:01]}  gxf4 {[%clk 0:00:03]} 42. Be4 {[%clk 0:00:50]}  Kg7 {[%clk 0:00:03]} 43. Kxf4 {[%clk 0:00:50]}  Nf6 {[%clk 0:00:03]} 44. Bf3 {[%clk 0:00:50]}  Rd6 {[%clk 0:00:03]} 45. Ke5 {[%clk 0:00:49]}  Rd8 {[%clk 0:00:02]} 46. d5 {[%clk 0:00:48]}  Kg6 {[%clk 0:00:02]} 47. Rb6 {[%clk 0:00:48]}  Re8+ {[%clk 0:00:03]} 48. Re6 {[%clk 0:00:47]}  Rf8 {[%clk 0:00:02]} 49. d6 {[%clk 0:00:47]}  Kg5 {[%clk 0:00:03]} 50. h4+ {[%clk 0:00:46]}  Kg6 {[%clk 0:00:02]} 51. d7 {[%clk 0:00:46]}  Kf7 {[%clk 0:00:01]} 52. Rxf6+ {[%clk 0:00:46]}  Ke7 {[%clk 0:00:01]} 53. Rxf8 {[%clk 0:00:47]} 1-0


[Site "https://www.chess.com"]

[Event "Titled Tuesday Blitz August 3 2021"]
[White "Vusatiuk, Vladimir"]
[Black "Reprintsev, Alexander"]
[WhiteFideId "14118610"]
[BlackFideId "14100541"]
[WhiteElo "2167"]
[BlackElo "2126"]
[Result "1-0"]
[Round "09"]
[TimeControl "180+1"]
[Date "2021.08.03"]
[WhiteClock "0:00:15"]
[BlackClock "0:00:32"]

1. d4 {[%clk 0:03:00]}  d5 {[%clk 0:02:56]} 2. c4 {[%clk 0:03:01]}  e5 {[%clk 0:02:55]} 3. dxe5 {[%clk 0:03:01]}  d4 {[%clk 0:02:54]} 4. Nf3 {[%clk 0:03:01]}  Nc6 {[%clk 0:02:53]} 5. a3 {[%clk 0:03:02]}  g6 {[%clk 0:02:52]} 6. Nbd2 {[%clk 0:03:00]}  Bg7 {[%clk 0:02:51]} 7. g3 {[%clk 0:02:59]}  Nh6 {[%clk 0:02:47]} 8. Bg2 {[%clk 0:02:59]}  O-O {[%clk 0:02:46]} 9. O-O {[%clk 0:02:58]}  Re8 {[%clk 0:02:45]} 10. b4 {[%clk 0:02:58]}  a5 {[%clk 0:02:44]} 11. b5 {[%clk 0:02:58]}  Nxe5 {[%clk 0:02:44]} 12. Bb2 {[%clk 0:02:37]}  Nf5 {[%clk 0:02:42]} 13. Qc2 {[%clk 0:02:23]}  d3 {[%clk 0:02:31]} 14. exd3 {[%clk 0:02:20]}  Qxd3 {[%clk 0:02:30]} 15. Qxd3 {[%clk 0:02:10]}  Nxd3 {[%clk 0:02:31]} 16. Bxg7 {[%clk 0:02:10]}  Kxg7 {[%clk 0:02:31]} 17. Rad1 {[%clk 0:02:02]}  Nb2 {[%clk 0:02:18]} 18. Rde1 {[%clk 0:01:58]}  Be6 {[%clk 0:02:15]} 19. Ng5 {[%clk 0:01:50]}  Bxc4 {[%clk 0:02:10]} 20. Nxc4 {[%clk 0:01:49]}  Nxc4 {[%clk 0:02:09]} 21. Bxb7 {[%clk 0:01:49]}  Rab8 {[%clk 0:01:59]} 22. Rxe8 {[%clk 0:01:44]}  Rxe8 {[%clk 0:01:59]} 23. Rc1 {[%clk 0:01:37]}  Nfd6 {[%clk 0:01:55]} 24. Bc6 {[%clk 0:01:15]}  Re2 {[%clk 0:01:49]} 25. a4 {[%clk 0:01:12]}  h6 {[%clk 0:01:35]} 26. Nxf7 {[%clk 0:01:10]}  Kxf7 {[%clk 0:01:18]} 27. Bd5+ {[%clk 0:01:11]}  Ke7 {[%clk 0:01:18]} 28. Bxc4 {[%clk 0:01:11]}  Re4 {[%clk 0:01:08]} 29. Bd3 {[%clk 0:00:39]}  Rxa4 {[%clk 0:01:07]} 30. Rxc7+ {[%clk 0:00:40]}  Kd8 {[%clk 0:01:08]} 31. Rh7 {[%clk 0:00:37]}  g5 {[%clk 0:01:06]} 32. Rxh6 {[%clk 0:00:34]}  Rd4 {[%clk 0:01:07]} 33. Bf1 {[%clk 0:00:19]}  a4 {[%clk 0:01:06]} 34. Rh8+ {[%clk 0:00:16]}  Kc7 {[%clk 0:01:06]} 35. Ra8 {[%clk 0:00:16]}  g4 {[%clk 0:01:00]} 36. Kg2 {[%clk 0:00:16]}  Ne4 {[%clk 0:00:52]} 37. Ra6 {[%clk 0:00:15]}  Rd2 {[%clk 0:00:47]} 38. Rxa4 {[%clk 0:00:14]}  Rxf2+ {[%clk 0:00:47]} 39. Kg1 {[%clk 0:00:14]}  Nc3 {[%clk 0:00:32]} 40. Rc4+ {[%clk 0:00:14]}  Kd6 {[%clk 0:00:32]} 41. Kxf2 {[%clk 0:00:15]} 1-0


[Site "https://www.chess.com"]